Cogmind - Beta 16 --- EXPLORER MODE // 2025.11.21 @ 08:27:52 Player: K.K.Y. Result: Self-destructed Performance ------------- Evolutions (0) 0 Regions Visited (4) 800 Robots Destroyed (17) 85 Value Destroyed (408) 408 Prototype IDs (3) 60 Alien Tech Used (0) 0 Bonus (0) 0 TOTAL SCORE: 1353 Bonus ------- None Cogmind --------- Core Integrity 62/250 Matter 252/300 Energy 54/100 System Corruption 2% Temperature Danger (427) Movement Core (200) Ox3 Location -9/Mines Parts ------- > --- POWER (1) -------- (None) > --- PROPULSION (2) --- (None) > --- UTILITY (3) ------ Medium Storage Unit > --- WEAPON (2) ------- (None) > --- INVENTORY (10) --- Improved Heat Sink Large Storage Unit Humpback Beam Cannon Peak State ------------ > --- POWER ------------ Light Nuclear Core > --- PROPULSION ------- Aluminum Leg Aluminum Leg > --- UTILITY ---------- Medium Storage Unit Core Shielding Medium Armor Plating > --- WEAPON ----------- Beam Cannon Slug Cannon > --- INVENTORY -------- Improved Heat Sink Large Storage Unit Humpback Mining Laser [Rating: 14] Favorites ----------- Power Ion Engine Engine Ion Engine Power Core Light Nuclear Core Propulsion Aluminum Leg Leg Aluminum Leg Utility Medium Storage Unit Storage Medium Storage Unit Protection Core Shielding Weapon Beam Cannon Energy Gun Medium Laser Energy Cannon Beam Cannon Ballistic Gun Assault Rifle Ballistic Cannon Slug Cannon Special Weapon Mining Laser Build | -11 -10 -10 -10 -9 ------- Run | Yrd Mat Min Exi Min Slots Evolved 1 | . 1 . . . Power . | . . . . . Propulsion . | . . . . . Utility 1 | . 1 . . . Weapon . | . . . . . Parts Attached 17 | 6 6 3 1 1 Power 2 | 1 . 1 . . Engine 1 | 1 . . . . Core 1 | . . 1 . . Reactor . | . . . . . Propulsion 6 | 2 2 2 . . Treads . | . . . . . Leg 6 | 2 2 2 . . Wheel . | . . . . . Hover . | . . . . . Flight . | . . . . . Utility 3 | 1 2 . . . Device . | . . . . . Storage 1 | 1 . . . . Processor . | . . . . . Hackware . | . . . . . Protection 2 | . 2 . . . Artifact . | . . . . . Weapon 6 | 2 2 . 1 1 Energy Gun 1 | 1 . . . . Energy Cannon 2 | . 2 . . . Ballistic Gun 1 | 1 . . . . Ballistic Cannon 1 | . . . 1 . Launcher . | . . . . . Special Weapon 1 | . . . . 1 Impact Weapon . | . . . . . Slashing Weapon . | . . . . . Piercing Weapon . | . . . . . Special Melee Weapon . | . . . . . Unidentified Prototypes . | . . . . . Parts Lost 8 | . . . 3 5 Power 1 | . . . . 1 Propulsion 2 | . . . . 2 Utility 2 | . . . 2 . Weapon 3 | . . . 1 2 Highest Loss Streak 5 | . . . 3 5 To Critical Strikes 1 | . . . . 1 Average Backups 3 | 3 1 3 4 4 Power . | . . . . . Propulsion . | 1 . . . . Utility 1 | . . 1 2 3 Weapon 1 | 1 1 1 2 1 Tool/Special . | . . . . . Unused Backups 6 | 2 . 1 . 3 Power . | . . . . . Propulsion 2 | 2 . . . . Utility 3 | . . . . 3 Weapon 1 | . . 1 . . Tool/Special . | . . . . . Average Slot Usage (%) 92 | . 86 100 98 65 Engine 6 | . 12 2 . . Core 5 | . . 9 12 10 Leg 25 | . 25 25 25 25 Storage 12 | . 12 12 12 12 Protection 18 | . 11 25 23 . Energy Gun 4 | . 9 . . . Energy Cannon 14 | . 3 25 24 12 Ballistic Gun 4 | . 11 . . . Peak Build Rating 14 | 6 9 11 14 11 Average Rating 9 | 1 7 10 11 8 On Entrance 6 | . 6 9 11 8 Avg Prop Armor Cover (%) . | . . . . . Naked Turns . | . . . . . Heaviest Build 32 | 19 29 29 32 18 Greatest Support 20 | 20 20 20 20 20 Greatest Overweight (x) 3 | 3 1 1 1 . Average Overweight (x) . | 1 . 1 . . Largest Inventory Capacity 10 | 10 10 10 10 10 Average Capacity 9 | 9 10 10 10 10 Most Carried 6 | 5 6 4 6 6 Average Carried 3 | 4 1 3 5 5 Final Capacity 10 | 10 10 10 10 10 Final Carried 6 | . 5 4 6 5 Class Distribution -------------------- 100% | Hacker-Mutant Dominant Class ---------------- Hacker-Mutant | -10/Materials Hacker-Mutant | -10/Mines Hacker-Mutant | -10/Exiles Hacker-Mutant | -9/Mines Resources | -11 -10 -10 -10 -9 ----------- Run | Yrd Mat Min Exi Min Matter Collected 502 | 250 214 38 . . Remotely . | . . . . . Salvage Created 645 | . 522 80 16 27 Parts 40 | . 33 7 . . Haulers Intercepted 2 | . 2 . . . Recyclers Shooed . | . . . . . Parts Field Recycled . | . . . . . Retrieved Matter . | . . . . . Parts Self-Destructed . | . . . . . Prevented . | . . . . . Parts Restored . | . . . . . Kills | -11 -10 -10 -10 -9 ------- Run | Yrd Mat Min Exi Min Combat Hostiles Destroyed 18 | . 11 2 1 4 Guns 8 | . 8 . . . Cannons 10 | . 3 2 1 4 Classes Destroyed 5 | . 4 . 1 . Hauler 2 | . 2 . . . Watcher 2 | . 2 . . . Swarmer 4 | . 4 . . . Grunt 9 | . 7 2 . . Assembled 5 | . . . 1 4 Best Kill Streak 4 | . 3 2 1 4 Combat Bots Only 4 | . 3 2 1 4 Max Kills in Single Turn 2 | . 2 1 1 1 Gunslinging 1 | . 1 . . . Exploded . | . . . . . Melee . | . . . . . Uniques/NPCs Destroyed . | . . . . . Combat | -11 -10 -10 -10 -9 -------- Run | Yrd Mat Min Exi Min Hostile Shots Fired 160 | . 47 4 42 67 Missed 40 | . 11 1 14 14 Hits 120 | . 36 3 28 53 Melee 20 | . . . 17 3 Projectile 100 | . 36 3 11 50 Critical Strikes 1 | . . . . 1 Part Disruptions 3 | . . . . 3 Damage Taken 1156 | . 260 26 426 444 Core 188 | . 32 . 76 80 Absorbed by Shields . | . . . . . Redirected to Shielding 3 | . 2 . 1 . Ignored by Resistances 712 | . 168 17 248 279 Core Remaining (%) 100 | 100 . . . . Volleys Fired 67 | . 49 2 5 11 Largest 2 | . 2 2 2 2 Hottest 120 | . 120 120 120 100 Shots Fired 128 | . 96 4 11 17 Gun 84 | . 84 . . . Cannon 43 | . 12 4 11 16 Launcher . | . . . . . Special 1 | . . . . 1 Kinetic 56 | . 48 . 2 6 Thermal 72 | . 48 4 9 11 Explosive . | . . . . . Electromagnetic . | . . . . . Robot Hit Streak 15 | . 15 5 9 10 Robot Miss Streak 2 | . 2 . 2 1 Penetration Max . | . . . . . Secondary Targets 1 | . 1 . . . Max Gunslinging Chain 1 | . 1 . . . Shots Hit Robots 100 | . 72 4 9 15 Core Hits 39 | . 24 3 5 7 Critical Kills 1 | . . . . 1 Critical Parts Destroyed . | . . . . . Critical Strikes 4 | . 3 . . 1 Burn 3 | . 3 . . . Destroy 1 | . . . . 1 Melee Attacks . | . . . . . Impact . | . . . . . Slashing . | . . . . . Piercing . | . . . . . Sneak Attacks . | . . . . . Combat Hostiles . | . . . . . Follow-up Attacks . | . . . . . Damage Inflicted 1514 | . 952 75 159 328 Guns 777 | . 777 . . . Cannons 709 | . 175 71 159 304 Explosions . | . . . . . Melee . | . . . . . Ramming 4 | . . 4 . . Kinetic 672 | . 490 . 54 128 Thermal 838 | . 462 71 105 200 Explosive . | . . . . . Electromagnetic . | . . . . . Impact . | . . . . . Slashing . | . . . . . Piercing . | . . . . . Highest Corruption 2 | . 1 1 2 2 Average Corruption 1 | . 1 1 1 2 Corruption Purged . | . . . . . Corruption Blocked . | . . . . . Effects 13 | . 1 9 3 . Message Errors 6 | . 1 4 1 . Matter Fused 2 | . . 2 . . Energy Discharges 1 | . . 1 . . Data Loss (minor) 2 | . . 2 . . Data Loss (major) 1 | . . . 1 . Misfires 1 | . . . 1 . Overload Shots . | . . . . . Overflow Damage 6 | . . . . 6 Projectiles 6 | . . . . 6 Explosions . | . . . . . Melee . | . . . . . Knockbacks 5 | . . . 2 3 Impact . | . . . . . Kinetic 4 | . . . 2 2 Secondary 1 | . . . . 1 Self-Inflicted Damage . | . . . . . Shots . | . . . . . Rammed . | . . . . . Targets Rammed 1 | . . 1 . . Kicked 1 | . . 1 . . Crushed . | . . . . . Highest Temperature 437 | . 378 121 341 437 Average Temperature 108 | . 71 62 157 273 Received Heat Transfer 541 | . 177 24 180 160 Effects 6 | . 1 . 1 4 Shutdowns 1 | . . . 1 . Energy Bleed 1 | . 1 . . . Short Circuit 1 | . . . . 1 Damage (major) 3 | . . . . 3 Siege Activations . | . . . . . Martial Activations . | . . . . . Shielding Activations . | . . . . . Robots Disrupted . | . . . . . Combat Hostiles . | . . . . . Robots Corrupted . | . . . . . Combat Hostiles . | . . . . . Parts Fried . | . . . . . Impact Corruptions . | . . . . . Robots Melted . | . . . . . Combat Hostiles . | . . . . . Parts Melted 3 | . 3 . . . Heat Transferred 2233 | . 1443 148 222 420 Parts Sabotaged . | . . . . . Parts Stolen . | . . . . . Parts Stripped . | . . . . . Power Chain Reactions . | . . . . . Alert | -11 -10 -10 -10 -9 ------- Run | Yrd Mat Min Exi Min Maximum Alert Level . | . . . . . Low Security (%) 100 | 100 100 100 . 100 Level 1 . | . . . . . Level 2 . | . . . . . Level 3 . | . . . . . Level 4 . | . . . . . Level 5 . | . . . . . High Security . | . . . . . Max Security . | . . . . . Peak Influence 77 | . 77 50 . 2 Initial . | . . . . . Average 5 | . 8 1 . . Influence Increases 431 | . 378 50 . 3 Destroy 0b10 Robot/C 260 | . 220 40 . . Destroy 0b10 Robot/NC 20 | . 20 . . . Destroy Leader 68 | . 58 10 . . Successful Hack 35 | . 35 . . . Destroy Structure 3 | . . . . 3 Partial Spotted 15 | . 15 . . . Lose Combat Pursuer 30 | . 30 . . . Influence Decreases 431 | . 378 50 . 3 Time Decay 430 | . 378 50 . 2 Lost Part 1 | . . . . 1 Squads Dispatched 2 | . 2 . . . Investigation 2 | . 2 . . . Extermination . | . . . . . Reinforcement . | . . . . . Assault . | . . . . . Garrison . | . . . . . Intercept . | . . . . . Searches Triggered . | . . . . . Construction Impeded . | . . . . . Haulers Reinforced . | . . . . . Active Scanning Responses . | . . . . . Cargo Convoy Interrupts . | . . . . . Stealth | -11 -10 -10 -10 -9 --------- Run | Yrd Mat Min Exi Min Distress Signals 1 | . 1 . . . Communications Jammed . | . . . . . Distress Signals . | . . . . . Times Spotted 43 | . 23 2 8 10 Peak Tracking Total 12 | . 5 2 12 9 Tactical Retreats 3 | . 2 . 1 . Traps | -11 -10 -10 -10 -9 ------- Run | Yrd Mat Min Exi Min Traps Triggered 3 | . 3 . . . Indirectly . | . . . . . Trap Hack Attempts . | . . . . . Triggered . | . . . . . Disarmed . | . . . . . Reprogrammed . | . . . . . Reused . | . . . . . Traps Extracted . | . . . . . Installed . | . . . . . Triggered . | . . . . . Machines | -11 -10 -10 -10 -9 ---------- Run | Yrd Mat Min Exi Min Machines Disabled 1 | . . . 1 . Max in Single Turn 1 | . . . 1 . Machines Repaired . | . . . . . Machines Dismantled . | . . . . . Machines Sabotaged . | . . . . . Overloaded Fab Kills . | . . . . . Hacking | -11 -10 -10 -10 -9 --------- Run | Yrd Mat Min Exi Min Machines Accessed 13 | . 10 1 2 . Terminals 9 | . 8 1 . . Fabricators . | . . . . . Repair Stations . | . . . . . Recycling Units 2 | . 2 . . . Scanalyzers . | . . . . . Garrison Access . | . . . . . Total Hacks 46 | . 28 1 17 . Successful 32 | . 14 1 17 . Failed 14 | . 14 . . . Catastrophic 1 | . 1 . . . Database Lockouts . | . . . . . Manual 6 | . 6 . . . Terminals 25 | . 24 1 . . Fabricators . | . . . . . Repair Stations . | . . . . . Recycling Units 4 | . 4 . . . Scanalyzers . | . . . . . Garrison Access . | . . . . . Terminal Hacks 29 | . 11 1 17 . Record 17 | . . . 17 . Prototype ID Bank 1 | . 1 . . . Level Access Points 1 | . 1 . . . Emergency Access Points 1 | . 1 . . . Terminal Index 1 | . 1 . . . Dispatch Records 1 | . . 1 . . Maintenance Status 1 | . 1 . . . Surveillance Status 1 | . 1 . . . Hauler Manifests 2 | . 2 . . . Zone Layout 3 | . 3 . . . Fabricator Hacks . | . . . . . Repair Station Hacks . | . . . . . Recycling Unit Hacks 3 | . 3 . . . Report Inventory 2 | . 2 . . . Retrieve Components 1 | . 1 . . . Scanalyzer . | . . . . . Garrison Access Hacks . | . . . . . Unauthorized Hacks . | . . . . . Terminals . | . . . . . Fabricators . | . . . . . Repair Stations . | . . . . . Recycling Units . | . . . . . Scanalyzers . | . . . . . Garrison Access . | . . . . . Data Cores Recovered . | . . . . . Used . | . . . . . Hacking Detections 8 | . 8 . . . Full Trace Events 4 | . 4 . . . Feedback Events . | . . . . . Feedback Blocked . | . . . . . Robot Schematics Acquired . | . . . . . Robots Built . | . . . . . Authchips . | . . . . . Time . | . . . . . Total Robot Build Rating . | . . . . . Part Schematics Acquired . | . . . . . Parts Built . | . . . . . Authchips . | . . . . . Time . | . . . . . Total Part Build Rating . | . . . . . Part Studies Acquired . | . . . . . Parts Repaired . | . . . . . Time . | . . . . . Parts Recycled . | . . . . . Recycled Matter . | . . . . . Retrieved Matter . | . . . . . Retrieved Components 2 | . 2 . . . Parts Scanalyzed . | . . . . . Part Schematics Acquired . | . . . . . Parts Damaged . | . . . . . Bothacking | -11 -10 -10 -10 -9 ------------ Run | Yrd Mat Min Exi Min Used RIF Installer . | . . . . . Robots Hacked . | . . . . . Non-combat . | . . . . . Combat . | . . . . . Robot Hacks Applied . | . . . . . Relay Couplers Released . | . . . . . Fabnet Peak Effective % . | . . . . . Robots Rewired . | . . . . . Allies Hacked . | . . . . . Hacks Repelled . | . . . . . Allies | -11 -10 -10 -10 -9 -------- Run | Yrd Mat Min Exi Min Total Allies . | . . . . . Largest Group . | . . . . . Highest-Rated Group . | . . . . . Highest-Rated Ally . | . . . . . Total Orders . | . . . . . Ally Attacks . | . . . . . Total Damage . | . . . . . Kills . | . . . . . Allies Corrupted . | . . . . . Allies Melted . | . . . . . Intel | -11 -10 -10 -10 -9 ------- Run | Yrd Mat Min Exi Min Active Infowar (turns) . | . . . . . Robot Analysis Total . | . . . . . Derelict Logs Recovered 1 | . . 1 . . Drone Launches . | . . . . . Drone Recoveries . | . . . . . Exploration | -11 -10 -10 -10 -9 ------------- Run | Yrd Mat Min Exi Min Turns Passed 3268 | 89 1448 1055 613 63 Spaces Moved 1674 | 53 767 506 323 25 Core 50 | 50 . . . . Treads . | . . . . . Legs 1624 | 3 767 506 323 25 Wheels . | . . . . . Hover . | . . . . . Flight . | . . . . . Fastest Speed 50 | 50 120 190 120 120 Average Speed 167 | 141 149 190 184 120 Slowest Speed 200 | 200 190 190 190 120 Overloaded Moves . | . . . . . Propulsion Burnouts . | . . . . . Robots Hopped . | . . . . . Potential Cave-ins . | . . . . . Cave-ins Triggered . | . . . . . Exploration Rate (%) 52 | 5 96 74 76 9 Regions Visited 4 Branch Regions 3 Pre-discovered Areas 1 | . . 1 . . Known Exits Taken 4 | 1 1 1 1 . Unknown Exits Taken . | . . . . . Scrap Searched 1 | . . 1 . . Spaces Dug . | . . . . . Terrain Destroyed 4 | . . . . 4 Melee . | . . . . . Projectile 4 | . . . . 4 AOE . | . . . . . Terrain Rammed . | . . . . . Walls Destroyed . | . . . . . Machines Disabled . | . . . . . Actions | -11 -10 -10 -10 -9 --------- Run | Yrd Mat Min Exi Min Total 2007 | 67 974 597 330 39 Wait 216 | . 141 75 . . Move 1670 | 52 766 505 322 25 Hop . | . . . . . Pick Up 22 | 7 9 5 1 . Fast Attach 1 | 1 . . . . Attach 11 | 5 3 . 1 2 Detach 3 | . 1 . 1 1 Swap 6 | . 3 3 . . Drop 10 | 2 2 6 . . Fire 67 | . 49 2 5 11 Melee . | . . . . . Ram . | . . . . . Kick 1 | . . 1 . . Crush . | . . . . . Escape Stasis . | . . . . . Rewire . | . . . . . Trap . | . . . . . Miscellaneous . | . . . . . Route ------- -11/Scrapyard -10/Materials (discovered 4 exits: *Mat x3 / *Min) -10/Mines (discovered 2 exits: *Mat / *Exi) -10/Exiles -9/Mines History --------- Turn | Location | Event 9 | -11/Scrapyard | Identified exit to Materials 9 | -11/Scrapyard | Discovered exit to Materials (range 15) 90 | -11/Scrapyard | Entered Materials 90 | -10/Materials | Evolved 1 slot: Utility x1 316 | -10/Materials | Build established: Hacker-Mutant 402 | -10/Materials | Identified exit to Materials 402 | -10/Materials | Discovered exit to Materials (range 16) 873 | -10/Materials | Identified exit to Mines 873 | -10/Materials | Discovered exit to Mines (range 7) 1538 | -10/Materials | Entered Mines 1542 | -10/Mines | Met a Derelict bent on vengeance 1593 | -10/Mines | A weapon hastily lodged in a ceiling crevice suddenly fell to the ground 1707 | -10/Mines | Discovered exit to Materials (range 5) 1856 | -10/Mines | Learned 4 Materials zone layouts 1911 | -10/Mines | Found a hidden stash of uninstalled traps 2030 | -10/Mines | Learned location of Storage (-8) 2580 | -10/Mines | Deemed a non-threat by the Exiles lab entrance 2582 | -10/Mines | Identified exit to Exiles 2582 | -10/Mines | Discovered exit to Exiles (range 5) 2593 | -10/Mines | Entered Exiles 2645 | -10/Exiles | Met 8R-AWN 2675 | -10/Exiles | Met EX-HEX 2767 | -10/Exiles | Met EX-DEC 2810 | -10/Exiles | Visited The Gauntlet 2923 | -10/Exiles | Met EX-BIN 3132 | -10/Exiles | Attacked by the Exiles 3198 | -10/Exiles | Identified exit to Mines 3198 | -10/Exiles | Discovered exit to Mines (range 10) 3206 | -10/Exiles | Entered Mines 3207 | -9/Mines | Lost 3 parts (2u1w) 3212 | -9/Mines | Assembled infested the area 3249 | -9/Mines | Core integrity fell below 50% 3269 | -9/Mines | Self-destructed Last Messages --------------- 03240_ Slug penetrates as-12308. 03240_ as-12308 destroyed. 03246_ as-07007 destroyed. 03246_ Slug penetrates Wall. 03249_ as-94321 knocked back. 03252_ Knocked back. 03252_ as-94321 suffers critical hit (Destroy). 03252_ as-94321 destroyed. 03256_ Lgt. Nuclear Core destroyed. 03262_ Critical hit (Destroy). 03262_ Slug Cannon destroyed. 03263_ Beam Cannon broken. 03263_ Overheating: Short circuit. 03264_ Aluminum Leg destroyed. 03266_ Overheating: Mining Laser damaged (-7). 03266_ Overheating: Aluminum Leg damaged (-3). 03266_ Overheating: Med. Storage Unit damaged (-131). 03266_ Mining Laser destroyed. 03266_ Aluminum Leg destroyed. Map ----- +----------------------------------------------------+ | ?????????????????????????????????????????????????? | | ?????????????????????????????????????????????????? | | ?????????????????????????????????????????????????? | | ?????????????????????????????????????????????????? | | ?????????????????????????????????????????????????? | | ?????????????????????????????????????????????????? | | ?????????????????????????????????????????????????? | | ?????????????????????????????????????????????????? | | ?????????????????????????????????????????????????? | | ???????????????????????? ????????????????????????? | | ???????????????????????? ????????????????????????? | | ???????????????????????? ????????????????????????? | | ???????????????????????? ????????????????????????? | | ???????????????#???????? ????????????????????????? | | ??????????????? ???????? ????????????????????????? | | ??????????????? #??????? ????????????????????????? | | ??????????????# #??????# #???????????????????????? | | ??????????????# #??????# #???????????????????????? | | ??????????????# ##?????# #???????????????????????? | | ?????????????## #?????# #???????????????????????? | | ?????????????# ??##?# #???????????????????????? | | ?????????????# ???# ## %???????????????????????? | | ?????????????# ?####;# #???????????????????????? | | ????????????## #?# ? % #???????????????????????? | | ??????????### ### #??#a##??????????????????????? | | ?????????## ## #?## @##?????????????????????? | | ?????????# ### %% #?????????????????????? | | ?????????# ##aaaa#?????????????????????? | | ?????????# ## a ##????????????????????? | | ????????# ???## ### #????????????????? | | ???????# ??????### ### #????????????????? | | ?????????????????####?## #???????????????? | | ???????????????????????# #???????????????? | | ???????????????????????# ##???????????????? | | ??????????????????????# #####????????????????? | | ?????????????????????# ##????????????????????? | | ?????????????????????# #?????????????????????? | | ?????????????????????## ##?????????????????????? | | ??????????????????????##;##??????????????????????? | | ????????????????????????#????????????????????????? | | ?????????????????????????????????????????????????? | | ?????????????????????????????????????????????????? | | ?????????????????????????????????????????????????? | | | | | | | | | | | | | | | +----------------------------------------------------+ Best States ------------- Heat Dissipation 25 Energy Generation 14 Energy Capacity 250 Matter Stores 300 Matter Capacity 300 Sight Range 16 Terrain Scan Density 10 Armor Coverage 225 Resistance: KI 35 Resistance: TH 35 Resistance: EX 35 Resistance: EM 35 Resistance: I 35 Resistance: S 35 Resistance: P 35 Core Shielding 20 Evasion (%) 55 Offensive Hacking 20 Item Schematics ----------------- None Robot Schematics ------------------ None Fabricated ------------ Nothing Repaired ---------- Nothing Studied --------- None Alien Tech Used ----------------- None Achievements -------------- None Challenges ------------ None Game ------ Seed HeartCoolingTrap Manual? 0 Play Time 00:14:52 Cumulative 125.8 hours Start 2025.11.21 @ 08:13:02 End 2025.11.21 @ 08:27:52 Sessions 1 Manual Loads 0 Difficulty Explorer Special Mode None Game No. 144 Rogue 0 Adventurer 0 Explorer 144 Win Type - Total 0 Types 0/0/0/0/0/0/0/0/0/0 Lore% 66 Gallery% 65 Achievement% 50 Wizard Run 0 Options --------- Layout 1 ASCII 0 Keyboard 0 Movement Mouse Keybinds 0 Fullscreen 1 Font 24/Smallcaps Map View 50x35 Zoom Use 0% Tactical HUD 1 Map Filters NONE Filters NONE Steam 1 RUN: 1f351c0a-a32e-4727-a963-b23537376c5f